Cogmind - Beta 14 @@@ ROGUE MODE // 2024.09.27 @ 20:05:50 Player: lupe Result: Destroyed by YI-UF0 with YI-UF0's Doublenader Performance ------------- Evolutions (1) 500 Regions Visited (3) 600 Robots Destroyed (36) 180 Value Destroyed (895) 895 Prototype IDs (2) 40 Alien Tech Used (0) 0 Bonus (0) 0 TOTAL SCORE: 2215 Bonus ------- None Cogmind --------- Core Integrity 0/400 Matter 237/300 Energy 100/100 System Corruption 5% Temperature Cool (0) Movement Core (200) Ox3 Location -9/Mines Parts ------- > --- POWER (2) -------- (None) > --- PROPULSION (2) --- (None) > --- UTILITY (3) ------ Medium Storage Unit Terrain Scanner Terrain Scan Processor > --- WEAPON (2) ------- (None) > --- INVENTORY (10) --- Improved Ion Engine Reinforced Ion Engine Aluminum Leg Heat Sink Light Armor Plating Hardened Light Armor Plating Small Laser Improved Medium Laser Shotgun Slug Cannon Peak State ------------ > --- POWER ------------ Ion Engine > --- PROPULSION ------- Aluminum Leg Aluminum Leg > --- UTILITY ---------- Medium Storage Unit Terrain Scanner Terrain Scan Processor > --- WEAPON ----------- Improved Medium Laser Rocket Launcher > --- INVENTORY -------- Ion Engine Improved Ion Engine Aluminum Leg Heat Sink Light Armor Plating Small Laser Shotgun Light Cannon Grenade Launcher [Rating: 13] Favorites ----------- Power Light Ion Engine Engine Light Ion Engine Propulsion Aluminum Leg Leg Aluminum Leg Utility Medium Storage Unit Device Terrain Scanner Storage Medium Storage Unit Processor Signal Interpreter Weapon Small Laser Energy Gun Small Laser Ballistic Gun Light Assault Rifle Ballistic Cannon Light Cannon Launcher Grenade Launcher Build | -11 -10 -9 -9 ------- Run | Yrd Mat Mat Min Slots Evolved 2 | . . 2 . Power 1 | . . 1 . Propulsion . | . . . . Utility 1 | . . 1 . Weapon . | . . . . Parts Attached 39 | 5 14 13 7 Power 5 | 1 2 1 1 Engine 5 | 1 2 1 1 Core . | . . . . Reactor . | . . . . Propulsion 13 | 2 6 4 1 Treads . | . . . . Leg 13 | 2 6 4 1 Wheel . | . . . . Hover . | . . . . Flight . | . . . . Utility 4 | . 2 1 1 Device 1 | . . 1 . Storage 1 | . 1 . . Processor 2 | . 1 . 1 Hackware . | . . . . Protection . | . . . . Artifact . | . . . . Weapon 17 | 2 4 7 4 Energy Gun 7 | 1 1 4 1 Energy Cannon . | . . . . Ballistic Gun 5 | 1 2 1 1 Ballistic Cannon 1 | . 1 . . Launcher 4 | . . 2 2 Special Weapon . | . . . . Impact Weapon . | . . . . Slashing Weapon . | . . . . Piercing Weapon . | . . . . Special Melee Weapon . | . . . . Unidentified Prototypes . | . . . . Parts Lost 7 | . . 2 5 Power 2 | . . 1 1 Propulsion 3 | . . 1 2 Utility . | . . . . Weapon 2 | . . . 2 Highest Loss Streak 5 | . . 2 5 To Critical Strikes . | . . . . Average Slot Usage (%) 87 | . 96 76 86 Engine 12 | . 14 10 10 Leg 24 | . 28 22 21 Device 4 | . . 7 11 Storage 10 | . 10 11 11 Processor 9 | . 13 3 11 Energy Gun 13 | . 15 10 15 Ballistic Gun 7 | . 10 4 5 Ballistic Cannon 1 | . 2 1 . Launcher 2 | . . 5 . Peak Build Rating 13 | 5 8 11 13 Average Rating 8 | 2 6 8 11 On Entrance 5 | . 5 7 10 Naked Turns . | . . . . Heaviest Build 23 | 6 18 23 23 Greatest Support 20 | 20 20 20 20 Greatest Overweight (x) 1 | . . 1 1 Average Overweight (x) . | . . . . Largest Inventory Capacity 10 | 5 10 10 10 Average Capacity 9 | 5 8 10 10 Most Carried 10 | 4 10 10 10 Average Carried 8 | . 7 9 9 Final Capacity 10 | 5 10 10 10 Final Carried 10 | 4 9 10 10 Class Distribution -------------------- 50% | Mutant 49% | Scavenger-Mutant Dominant Class ---------------- Mutant | -10/Materials Scavenger-Mutant | -9/Materials Scavenger-Mutant | -9/Mines Resources | -11 -10 -9 -9 ----------- Run | Yrd Mat Mat Min Matter Collected 883 | 250 240 302 91 Remotely . | . . . . Salvage Created 960 | 44 501 268 147 Parts 72 | 5 38 22 7 Haulers Intercepted . | . . . . Recyclers Shooed 1 | . . 1 . Parts Field Recycled . | . . . . Retrieved Matter . | . . . . Parts Self-Destructed . | . . . . Prevented . | . . . . Kills | -11 -10 -9 -9 ------- Run | Yrd Mat Mat Min Combat Hostiles Destroyed 28 | 1 16 7 4 Guns 24 | 1 16 6 1 Cannons 1 | . . 1 . AOE 3 | . . . 3 Classes Destroyed 8 | 1 3 3 1 Worker 2 | . . 1 1 Builder 2 | . 1 1 . Tunneler 1 | . . 1 . Watcher 3 | . 2 1 . Swarmer 9 | . 9 . . Grunt 14 | 1 7 4 2 Brawler 1 | . . . 1 Sentry 4 | . . 3 1 Best Kill Streak 4 | 1 4 3 4 Combat Bots Only 3 | 1 3 2 3 Max Kills in Single Turn 3 | 1 2 1 3 Gunslinging 1 | . 1 . . Exploded 2 | . . . 2 Melee . | . . . . Uniques/NPCs Destroyed . | . . . . Combat | -11 -10 -9 -9 -------- Run | Yrd Mat Mat Min Hostile Shots Fired 199 | 2 105 64 28 Missed 55 | . 34 12 9 Damage Taken 2128 | 20 681 780 647 Core 606 | . 202 213 191 Absorbed by Shields . | . . . . Core Remaining (%) 59 | 100 19 . . Volleys Fired 94 | 1 45 33 15 Largest 2 | 2 2 2 2 Hottest 96 | 60 90 96 96 Shots Fired 180 | 2 90 64 24 Gun 150 | 2 90 39 19 Cannon 14 | . . 14 . Launcher 16 | . . 11 5 Special . | . . . . Kinetic 80 | 1 43 26 10 Thermal 84 | 1 47 27 9 Explosive 16 | . . 11 5 Electromagnetic . | . . . . Robot Hit Streak 18 | 1 18 12 6 Robot Miss Streak 4 | 1 4 3 3 Penetration Max . | . . . . Secondary Targets 3 | . 3 . . Max Gunslinging Chain 1 | . 1 . . Shots Hit Robots 113 | 1 56 42 14 Core Hits 64 | 1 28 24 11 Critical Kills . | . . . . Critical Parts Destroyed . | . . . . Critical Strikes 4 | . 2 1 1 Burn 4 | . 2 1 1 Melee Attacks . | . . . . Impact . | . . . . Slashing . | . . . . Piercing . | . . . . Sneak Attacks . | . . . . Combat Hostiles . | . . . . Follow-up Attacks . | . . . . Damage Inflicted 1998 | 15 705 859 419 Guns 1267 | 15 705 362 185 Cannons 124 | . . 124 . Explosions 607 | . . 373 234 Melee . | . . . . Ramming . | . . . . Kinetic 593 | 15 296 197 85 Thermal 798 | . 409 289 100 Explosive 607 | . . 373 234 Electromagnetic . | . . . . Impact . | . . . . Slashing . | . . . . Piercing . | . . . . Highest Corruption 5 | . . 5 5 Average Corruption 4 | . . 4 5 Corruption Purged . | . . . . Corruption Blocked . | . . . . Effects 12 | . . . 12 Message Errors 3 | . . . 3 Matter Fused 3 | . . . 3 Heat Flow Errors 1 | . . . 1 Energy Discharges 1 | . . . 1 Data Loss (minor) 2 | . . . 2 Misfires 1 | . . . 1 Weapon Failures 1 | . . . 1 Overload Shots . | . . . . Overflow Damage 7 | . . 7 . Projectiles . | . . . . Explosions 7 | . . 7 . Melee . | . . . . Knockbacks 2 | . . 2 . Impact . | . . . . Kinetic 1 | . . 1 . Secondary 1 | . . 1 . Self-Inflicted Damage 66 | . . 30 36 Shots 5 | . . 2 3 Rammed . | . . . . Targets Rammed . | . . . . Kicked . | . . . . Crushed . | . . . . Highest Temperature 268 | 6 214 268 209 Average Temperature 65 | 6 54 79 59 Received Heat Transfer 630 | 12 222 384 12 Siege Activations . | . . . . Robots Corrupted . | . . . . Combat Hostiles . | . . . . Parts Fried . | . . . . Impact Corruptions . | . . . . Robots Melted . | . . . . Combat Hostiles . | . . . . Parts Melted 4 | . 2 1 1 Heat Transferred 2384 | . 1273 814 297 Parts Sabotaged . | . . . . Parts Stolen . | . . . . Parts Stripped . | . . . . Power Chain Reactions . | . . . . Alert | -11 -10 -9 -9 ------- Run | Yrd Mat Mat Min Peak Influence 237 | 20 237 164 148 Initial 13 | . 13 1 13 Average 86 | 2 115 68 72 Maximum Alert Level 1 | . 1 . . Low Security (%) 94 | 100 86 100 100 Level 1 5 | . 13 . . Level 2 . | . . . . Level 3 . | . . . . Level 4 . | . . . . Level 5 . | . . . . High Security . | . . . . Max Security . | . . . . Squads Dispatched 4 | . 4 . . Investigation 3 | . 3 . . Extermination . | . . . . Reinforcement 1 | . 1 . . Assault . | . . . . Garrison . | . . . . Intercept . | . . . . Searches Triggered . | . . . . Construction Impeded . | . . . . Haulers Reinforced . | . . . . Active Scanning Responses . | . . . . Cargo Convoy Interrupts . | . . . . Stealth | -11 -10 -9 -9 --------- Run | Yrd Mat Mat Min Distress Signals . | . . . . Communications Jammed . | . . . . Distress Signals . | . . . . Times Spotted 33 | 1 18 9 5 Peak Tracking Total 3 | 1 3 3 3 Tactical Retreats . | . . . . Traps | -11 -10 -9 -9 ------- Run | Yrd Mat Mat Min Traps Triggered 5 | . 2 3 . Indirectly . | . . . . Trap Hack Attempts . | . . . . Triggered . | . . . . Disarmed . | . . . . Reprogrammed . | . . . . Reused . | . . . . Traps Extracted . | . . . . Installed . | . . . . Triggered . | . . . . Machines | -11 -10 -9 -9 ---------- Run | Yrd Mat Mat Min Machines Disabled 2 | . . 2 . Max in Single Turn 1 | . . 1 . Machines Repaired . | . . . . Machines Dismantled . | . . . . Machines Sabotaged . | . . . . Overloaded Fab Kills . | . . . . Hacking | -11 -10 -9 -9 --------- Run | Yrd Mat Mat Min Machines Accessed 2 | . . 2 . Terminals 2 | . . 2 . Fabricators . | . . . . Repair Stations . | . . . . Recycling Units . | . . . . Scanalyzers . | . . . . Garrison Access . | . . . . Total Hacks 2 | . . 2 . Successful 2 | . . 2 . Failed . | . . . . Catastrophic . | . . . . Database Lockouts . | . . . . Manual 2 | . 1 . 1 Terminals 2 | . . 2 . Fabricators . | . . . . Repair Stations . | . . . . Recycling Units . | . . . . Scanalyzers . | . . . . Garrison Access . | . . . . Terminal Hacks 2 | . . 2 . Prototype ID Bank 1 | . . 1 . Alert Level 1 | . . 1 . Fabricator Hacks . | . . . . Repair Station Hacks . | . . . . Recycling Unit Hacks . | . . . . Scanalyzer . | . . . . Garrison Access Hacks . | . . . . Unauthorized Hacks . | . . . . Terminals . | . . . . Fabricators . | . . . . Repair Stations . | . . . . Recycling Units . | . . . . Scanalyzers . | . . . . Garrison Access . | . . . . Data Cores Recovered . | . . . . Used . | . . . . Hacking Detections . | . . . . Full Trace Events . | . . . . Feedback Events . | . . . . Feedback Blocked . | . . . . Robot Schematics Acquired . | . . . . Robots Built . | . . . . Authchips . | . . . . Time . | . . . . Total Robot Build Rating . | . . . . Part Schematics Acquired . | . . . . Parts Built . | . . . . Authchips . | . . . . Time . | . . . . Total Part Build Rating . | . . . . Parts Repaired . | . . . . Time . | . . . . Parts Recycled . | . . . . Recycled Matter . | . . . . Retrieved Matter . | . . . . Retrieved Components . | . . . . Parts Scanalyzed . | . . . . Part Schematics Acquired . | . . . . Parts Damaged . | . . . . Bothacking | -11 -10 -9 -9 ------------ Run | Yrd Mat Mat Min Used RIF Installer . | . . . . Robots Hacked . | . . . . Non-combat . | . . . . Combat . | . . . . Robot Hacks Applied . | . . . . Relay Couplers Released . | . . . . Fabnet Peak Effective % . | . . . . Robots Rewired . | . . . . Allies Hacked . | . . . . Hacks Repelled . | . . . . Allies | -11 -10 -9 -9 -------- Run | Yrd Mat Mat Min Total Allies . | . . . . Largest Group . | . . . . Highest-Rated Group . | . . . . Highest-Rated Ally . | . . . . Total Orders . | . . . . Ally Attacks . | . . . . Total Damage . | . . . . Kills . | . . . . Allies Corrupted . | . . . . Allies Melted . | . . . . Intel | -11 -10 -9 -9 ------- Run | Yrd Mat Mat Min Robot Analysis Total . | . . . . Derelict Logs Recovered 1 | . . . 1 Drone Launches . | . . . . Drone Recoveries . | . . . . Exploration | -11 -10 -9 -9 ------------- Run | Yrd Mat Mat Min Turns Passed 2829 | 103 1215 1005 506 Spaces Moved 1996 | 96 855 679 366 Core 40 | 40 . . . Treads . | . . . . Legs 1956 | 56 855 679 366 Wheels . | . . . . Hover . | . . . . Flight . | . . . . Fastest Speed 50 | 50 120 120 120 Average Speed 121 | 90 120 128 121 Slowest Speed 190 | 120 120 190 190 Overloaded Moves . | . . . . Propulsion Burnouts . | . . . . Robots Hopped . | . . . . Cave-ins Triggered . | . . . . Exploration Rate (%) 41 | 8 73 34 49 Regions Visited 3 Branch Regions 1 Pre-discovered Areas . | . . . . Known Exits Taken 2 | . 1 1 . Unknown Exits Taken 1 | 1 . . . Scrap Searched . | . . . . Spaces Dug . | . . . . Terrain Destroyed 96 | . . 55 41 Melee . | . . . . Projectile . | . . . . AOE 96 | . . 55 41 Terrain Rammed . | . . . . Walls Destroyed . | . . . . Machines Disabled . | . . . . Actions | -11 -10 -9 -9 --------- Run | Yrd Mat Mat Min Total 2226 | 110 958 755 403 Wait 23 | . 8 9 6 Move 1993 | 95 854 678 366 Hop . | . . . . Pick Up 49 | 9 22 13 5 Fast Attach . | . . . . Attach 12 | 5 2 3 2 Detach . | . . . . Swap 27 | . 12 10 5 Drop 28 | . 15 9 4 Fire 94 | 1 45 33 15 Melee . | . . . . Ram . | . . . . Kick . | . . . . Crush . | . . . . Escape Stasis . | . . . . Rewire . | . . . . Trap . | . . . . Miscellaneous . | . . . . Route ------- -11/Scrapyard -10/Materials (discovered 3 exits: *Mat x3) -9/Materials (discovered 2 exits: *Min x2) -9/Mines History --------- Turn | Location | Event 2 | -11/Scrapyard | Met Revision 17 82 | -11/Scrapyard | Discovered new exit (range 8) 104 | -11/Scrapyard | Entered Materials 313 | -10/Materials | Build established: Mutant 331 | -10/Materials | Discovered new exit (range 15) 590 | -10/Materials | Core integrity fell below 50% 742 | -10/Materials | Core integrity fell below 20% 859 | -10/Materials | Discovered new exit (range 16) 918 | -10/Materials | Discovered new exit (range 16) 935 | -10/Materials | Identified exit to Materials 1319 | -10/Materials | Entered another Materials area 1319 | -9/Materials | Evolved 2 slots: Power x1, Utility x1 1528 | -9/Materials | Discovered new exit (range 7) 1536 | -9/Materials | Identified exit to Mines 1709 | -9/Materials | Build established: Scavenger-Mutant 2296 | -9/Materials | Discovered exit to Mines (range 13) 2315 | -9/Materials | Core integrity fell below 50% 2324 | -9/Materials | Entered Mines 2360 | -9/Mines | Met a Derelict bent on vengeance 2562 | -9/Mines | Joined a pair of Derelicts in attacking an 0b10 outpost 2689 | -9/Mines | Learned 2 Materials zone layouts 2777 | -9/Mines | A weapon hastily lodged in a ceiling crevice suddenly fell to the ground 2827 | -9/Mines | Core integrity fell below 20% 2830 | -9/Mines | Destroyed by YI-UF0 with YI-UF0's Doublenader Last Messages --------------- attached: "It's not as slow as it sounds." 02780_ Dropped Grenade Launcher. 02780_ Acquired Slug Cannon. 02792_ System corrupted: Heat flow error (+230). 02805_ The unstable cave ceiling collapses. 02813_ Aluminum Leg destroyed. 02813_ Rocket Launcher destroyed. 02813_ T-07 Excavator destroyed. 02814_ The unstable cave ceiling collapses. 02822_ YI-UF0 mumbles something. 02822_ U-05 Engineer builds a Wall. 02824_ Aluminum Leg destroyed. 02826_ U-05 Engineer lays Concrete. 02826_ Ion Engine destroyed. 02828_ The unstable cave ceiling collapses. 02828_ U-05 Engineer lays Concrete. 02829_ The unstable cave ceiling collapses. 02829_ U-05 Engineer builds a Wall. 02830_ The unstable cave ceiling collapses. 02830_ Hvy. Assault Rifle destroyed. Map ----- +----------------------------------------------------+ | ?????????????????????????????????? ??????????????? | | ?????????????????????????????????? ??????????????? | | ??????????????? ????????????????? ??????????????? | | ???????????????# ?????#?#????????? ????????????#? | | ??????????????## ???#???????????? ????????????##? | | ????????????### ??????#?#??????? ??????????????? | | ???????????## ????????#??#???? ???????#??? ?? | | ??????????## ##???#??#?##???# #?#???????????? | | ??????????? ###??#????##??# #??#??????????? | | ?????????##? ##?#??#????## #?#??#????????? | | ??? ???#??????# #???##?????# #?###??#?????#? | | ??? ???###?##### ##?#??#????# ###???? ? ?##? | | ??????####?##### ##?## ??? #?##?? #####?## | | ? ?#?#?#???##??# #####??##?# #####?????#?##? | | ? ????#??#?????## ##### ##### ##?#?# ###??#?# | | ? ?#?#?##????#?## #?### ###### ######## | | ? ?#??###????### ######### | | # ?##?######## ]=####??#### ############## ## | | ? ?#????#?#?# !%[#####?#??# #??##?#####?## ## | | ? ########### * #######?## ##??###?##?#?# ## | | # ###??##!!## ######?# #####?###??#?# #? | | # #??#?#!!! # # #### ########?##### ## | | # ####?#* + # ######?#####?# #? | | # ####?#%= + # ########## ## | | # ###??#"!* # ## | | # ##?####!!## # @ ############ | | # #?########## g #] ##?#####?#?## | | # ####????### # #####?### ##### | | # ########## # ####### # ##### | | # # = #####??#???# | | # ## ##!# #####?? # #### ## | | ############ ######u########?##? ? #??## ## | | ????######?# #####?# #####?###?## ??##### ## | | #?#??##?#### ####### ####?############?### ## | | #??####?##?# ####?## #######?#########??## ## | | ??####?##?## ####### #?#???#######?###??## #? | | ???#? ?##### #??#### ##########?###?#?#### #? | | ?##? ? ??#?### ######## ##?### ##?######### ## | | #?# ? ? #??# ##?## ## #### # #### ###### ## | | ??# ?#### #?## # ### ## ##### ## | | ???# ## ### | | #?#?#?## = ######## | | ??????### ###?####? | | ????#???## ##### # ##???#?#?# | | ???????#?#### ############# # # # ######???#?## | | ???????#???####????????#??############???##?#???## | | ??????????????#???#?#?##?#?#??#####?#?###??#?#?#?# | | | | | | | +----------------------------------------------------+ Best States ------------- Heat Dissipation 28 Energy Generation 10 Energy Capacity 250 Matter Stores 300 Matter Capacity 300 Sight Range 16 Terrain Scan Range 14 Terrain Scan Density 85 Evasion (%) 55 Item Schematics ----------------- None Robot Schematics ------------------ None Fabricated ------------ Nothing Alien Tech Used ----------------- None Achievements -------------- None Challenges ------------ None Game ------ Seed MasterBraceDriver Manual? 0 Play Time 00:52:58 Cumulative 5.2 hours Start 2024.09.27 @ 02:20:28 End 2024.09.27 @ 20:05:50 Sessions 2 Manual Loads 0 Difficulty Rogue Special Mode None Game No. 3 Rogue 3 Adventurer 0 Explorer 0 Win Type - Total 0 Types 0/0/0/0/0/0/0/0/0 Lore% 1 Gallery% 6 Achievement% 7 Wizard Run 0 Options --------- Layout 0 ASCII 0 Keyboard 1 Movement Arrows Keybinds 0 Fullscreen 2 Font 18/X11Bold Map View 76x50 Zoom Use 3% Tactical HUD 1 Map Filters NONE Filters NONE Steam 1 RUN: 9768fc60-52ba-430e-9c84-e4661cbdd170